[Event "44th Chess Olympiad Open 2022"]
[Site "Chennai"]
[Date "2022.08.05"]
[Round "7.73"]
[White "Muhammed, Shuaau"]
[Black "Carpenter, Paul A"]
[Result "1/2-1/2"]
[WhiteElo "1987"]
[BlackElo "1938"]
[Annotator "NA"]
[PlyCount "104"]
[EventDate "2022.??.??"]
[TimeControl "60"]

1. e4 {[%emt 0:00:04]} d6 {[%emt 0:00:08]} 2. d4 {[%emt 0:00:05]} Nf6 {[%emt 0:
00:00]} 3. Nc3 {[%emt 0:00:02]} c6 {[%emt 0:00:13]} 4. Bg5 {[%emt 0:01:16]}
Nbd7 {[%emt 0:01:36]} 5. Qd2 {[%emt 0:01:08]} e5 {[%emt 0:02:36]} 6. f4 {
[%emt 0:08:43]} h6 {[%emt 0:30:27]} 7. Bxf6 {[%emt 0:01:00]} Qxf6 {[%emt 0:00:
00]} 8. Nge2 {[%emt 0:13:12]} Be7 {[%emt 0:17:50]} 9. g3 Nb6 {[%emt 0:13:13]}
10. b3 {[%emt 0:02:55]} Bg4 {[%emt 0:00:00]} 11. Bg2 {[%emt 0:07:55]} Bxe2 {
[%emt 0:00:00]} 12. Nxe2 {[%emt 0:02:18]} exd4 {[%emt 0:00:00]} 13. Qxd4 {
[%emt 0:01:26]} Qxd4 {[%emt 0:00:00]} 14. Nxd4 Bf6 {[%emt 0:01:33]} 15. O-O-O {
[%emt 0:01:14]} O-O-O {[%emt 0:01:44]} 16. c4 {[%emt 0:01:33]} g6 {[%emt 0:00:
00]} 17. h4 {[%emt 0:00:26]} h5 {[%emt 0:05:37]} 18. Rd3 {[%emt 0:00:54]} Kc7 {
[%emt 0:01:22]} 19. Kc2 {[%emt 0:01:08]} a5 {[%emt 0:24:30]} 20. Ne2 {[%emt 0:
00:00]} Nd7 {[%emt 0:00:00]} 21. Nc3 {[%emt 0:00:42]} Nc5 {[%emt 0:00:32]} 22.
Re3 {[%emt 0:00:24]} Rhe8 {[%emt 0:01:24]} 23. Rhe1 {[%emt 0:00:23]} Ne6 {
[%emt 0:04:19]} 24. Ne2 {[%emt 0:04:45]} Re7 {[%emt 0:08:45]} 25. e5 {[%emt 0:
00:00]} dxe5 {[%emt 0:00:00]} 26. fxe5 Bg7 27. Bh3 {[%emt 0:02:23]} Rde8 {
[%emt 0:02:09]} 28. Rf1 {[%emt 0:02:55]} Nd8 {[%emt 0:00:00]} 29. e6 f5 {
[%emt 0:01:35]} 30. Nf4 {[%emt 0:02:04]} Nxe6 {[%emt 0:00:00]} 31. Rfe1 {
[%emt 0:01:23]} Nd4+ {[%emt 0:00:00]} 32. Kd3 Rxe3+ {[%emt 0:00:00]} 33. Rxe3 {
[%emt 0:00:03]} Rxe3+ {[%emt 0:00:00]} 34. Kxe3 {[%emt 0:00:01]} Nc2+ {[%emt 0:
00:00]} 35. Kf3 Nd4+ {[%emt 0:00:00]} 36. Kf2 {[%emt 0:02:17]} Kd6 {[%emt 0:00:
00]} 37. Nxg6 {[%emt 0:00:02]} Bh6 {[%emt 0:00:00]} 38. Bg2 {[%emt 0:00:59]}
Ke6 {[%emt 0:00:00]} 39. Bf3 {[%emt 0:00:03]} Nxf3 40. Kxf3 {[%emt 0:00:02]} b5
{[%emt 0:00:00]} 41. Nf4+ Ke5 {[%emt 0:14:21]} 42. cxb5 {[%emt 0:19:31]} cxb5 {
[%emt 0:00:00]} 43. Nxh5 Kd4 {[%emt 0:13:49]} 44. Nf6 {[%emt 0:19:33]} Kc3 {
[%emt 0:00:00]} 45. Ke2 Kb2 {[%emt 0:09:31]} 46. Kd3 {[%emt 0:00:31]} Kxa2 {
[%emt 0:00:00]} 47. Kc2 {[%emt 0:02:18]} Be3 {[%emt 0:00:00]} 48. Nd5 {[%emt 0:
00:00]} Bf2 {[%emt 0:01:24]} 49. Nc3+ {[%emt 0:00:00]} Ka3 {[%emt 0:01:30]} 50.
Nxb5+ {[%emt 0:00:00]} Kb4 {[%emt 0:00:00]} 51. Nd6 {[%emt 0:00:00]} Bxg3 {
[%emt 0:00:05]} 52. Nxf5 {[%emt 0:00:00]} Bxh4 {[%emt 0:00:00]} 1/2-1/2

[Event "44th Chess Olympiad Open 2022"]
[Site "Chennai"]
[Date "2022.08.05"]
[Round "7.73"]
[White "Wojciechowski, Paul"]
[Black "Ashraf, Ahmed Ramadan"]
[Result "0-1"]
[WhiteElo "1944"]
[BlackElo "1916"]
[Annotator "NA"]
[PlyCount "90"]
[EventDate "2022.??.??"]
[TimeControl "60"]

1. e4 {[%emt 0:00:06]} e5 {[%emt 0:00:29]} 2. Nf3 {[%emt 0:00:35]} Nc6 {
[%emt 0:00:03]} 3. Bb5 {[%emt 0:00:05]} a6 {[%emt 0:00:15]} 4. Ba4 {[%emt 0:00:
00]} Nf6 {[%emt 0:00:07]} 5. d4 {[%emt 0:01:04]} b5 {[%emt 0:02:22]} 6. Bb3 {
[%emt 0:00:08]} Be7 {[%emt 0:08:38]} 7. O-O {[%emt 0:06:23]} d6 {[%emt 0:00:00]
} 8. c3 {[%emt 0:34:43]} Bg4 {[%emt 0:00:00]} 9. d5 {[%emt 0:05:13]} Na5 {
[%emt 0:00:00]} 10. Bc2 {[%emt 0:00:04]} O-O {[%emt 0:01:06]} 11. Qd3 {[%emt 0:
00:00]} c6 {[%emt 0:01:57]} 12. dxc6 {[%emt 0:00:39]} Nxc6 {[%emt 0:00:19]} 13.
Nbd2 {[%emt 0:02:34]} Qc7 {[%emt 0:00:58]} 14. Re1 {[%emt 0:05:02]} Rac8 {
[%emt 0:02:08]} 15. Nf1 {[%emt 0:05:52]} b4 {[%emt 0:21:05]} 16. Ne3 {[%emt 0:
00:00]} g6 {[%emt 0:09:27]} 17. Qxa6 {[%emt 0:03:29]} bxc3 {[%emt 0:07:07]} 18.
bxc3 {[%emt 0:00:09]} Bxf3 {[%emt 0:05:24]} 19. gxf3 {[%emt 0:00:10]} Nb8 {
[%emt 0:00:21]} 20. Qd3 {[%emt 0:02:40]} Nbd7 {[%emt 0:02:06]} 21. Bd2 {
[%emt 0:02:11]} Nc5 {[%emt 0:01:14]} 22. Qe2 {[%emt 0:00:25]} Qd7 {[%emt 0:00:
00]} 23. Qf1 {[%emt 0:03:45]} Bd8 {[%emt 0:01:20]} 24. c4 {[%emt 0:00:58]} Ne6
{[%emt 0:00:52]} 25. Rec1 {[%emt 0:01:53]} Nf4 {[%emt 0:01:25]} 26. Bd1 {
[%emt 0:01:14]} Bb6 {[%emt 0:00:39]} 27. Ng4 {[%emt 0:01:08]} Nxg4 {[%emt 0:00:
00]} 28. fxg4 {[%emt 0:00:04]} Ne6 {[%emt 0:01:13]} 29. Rab1 {[%emt 0:01:47]}
Bd4 {[%emt 0:00:34]} 30. Qe2 {[%emt 0:03:03]} Qe7 {[%emt 0:01:03]} 31. Rb3 {
[%emt 0:01:12]} Ra8 {[%emt 0:01:01]} 32. a3 {[%emt 0:01:04]} Bc5 {[%emt 0:00:
00]} 33. Be3 {[%emt 0:01:37]} Rxa3 {[%emt 0:01:25]} 34. Bxc5 {[%emt 0:01:17]}
Rxb3 {[%emt 0:00:16]} 35. Bxd6 {[%emt 0:00:25]} Qxd6 {[%emt 0:02:18]} 36. Bxb3
{[%emt 0:00:04]} Qa3 {[%emt 0:00:33]} 37. Qe3 {[%emt 0:03:51]} Rd8 {[%emt 0:00:
00]} 38. Bc2 {[%emt 0:04:28]} Qb2 {[%emt 0:00:49]} 39. Ba4 {[%emt 0:01:09]} Nf4
{[%emt 0:00:56]} 40. Rd1 {[%emt 0:00:47]} Ra8 {[%emt 0:01:32]} 41. Bb5 {
[%emt 0:05:34]} Ra1 {[%emt 0:02:52]} 42. Rf1 {[%emt 0:01:25]} Rxf1+ {[%emt 0:
00:00]} 43. Kxf1 {[%emt 0:00:04]} Qb1+ {[%emt 0:00:12]} 44. Qe1 {[%emt 0:00:14]
} Qd3+ {[%emt 0:00:03]} 45. Kg1 {[%emt 0:00:43]} Qf3 {[%emt 0:01:36]} 0-1

[Event "44th Chess Olympiad Open 2022"]
[Site "Chennai"]
[Date "2022.08.05"]
[Round "7.74"]
[White "Ayyad, Maher"]
[Black "Ebosse Kingue Victor Patrick"]
[Result "1-0"]
[WhiteElo "2101"]
[BlackElo "2054"]
[Annotator "NA RC"]
[PlyCount "71"]
[EventDate "2022.??.??"]
[TimeControl "60"]

1. d4 {[%emt 0:00:11]} Nf6 {[%emt 0:00:07]} 2. Nf3 {[%emt 0:00:02]} g6 {
[%emt 0:00:16]} 3. g3 {[%emt 0:00:04]} Bg7 {[%emt 0:00:07]} 4. Bg2 {[%emt 0:00:
00]} O-O {[%emt 0:00:06]} 5. O-O {[%emt 0:00:05]} d6 {[%emt 0:00:13]} 6. b3 {
[%emt 0:00:05]} c5 {[%emt 0:00:15]} 7. Bb2 {[%emt 0:00:15]} cxd4 {[%emt 0:00:
00]} 8. Nxd4 {[%emt 0:00:14]} a6 {[%emt 0:01:23]} 9. c4 {[%emt 0:00:13]} Qc7 {
[%emt 0:02:39]} 10. Nc3 {[%emt 0:00:31]} e6 {[%emt 0:01:46]} 11. Rc1 {[%emt 0:
00:00]} Nc6 {[%emt 0:02:57]} 12. Nd5 {[%emt 0:10:41]} Nxd5 {[%emt 0:09:41]} 13.
cxd5 {[%emt 0:00:24]} exd5 {[%emt 0:00:23]} 14. Bxd5 {[%emt 0:00:44]} Bd7 {
[%emt 0:01:09]} 15. Nxc6 {[%emt 0:01:45]} Bxc6 {[%emt 0:00:55]} 16. Bxg7 {
[%emt 0:00:08]} Kxg7 {[%emt 0:00:35]} 17. Qd4+ {[%emt 0:00:51]} f6 {[%emt 0:00:
00]} 18. Rfd1 {[%emt 0:00:16]} Rfd8 {[%emt 0:03:02]} 19. Rd3 {[%emt 0:01:50]}
Qd7 {[%emt 0:04:16]} 20. Rf3 {[%emt 0:04:14]} Rf8 {[%emt 0:00:33]} 21. Rfc3 {
[%emt 0:01:29]} Rfc8 {[%emt 0:03:28]} 22. Qb6 {[%emt 0:02:08]} Qc7 {[%emt 0:00:
00]} 23. Qxc7+ {[%emt 0:00:49]} Rxc7 {[%emt 0:00:10]} 24. b4 {[%emt 0:00:34]}
Rb8 {[%emt 0:05:57]} 25. a3 {[%emt 0:03:44]} Re7 {[%emt 0:07:00]} 26. Bxc6 {
[%emt 0:02:05]} bxc6 {[%emt 0:00:11]} 27. Rxc6 {[%emt 0:00:22]} Rxe2 {[%emt 0:
00:00]} 28. Rxa6 {[%emt 0:00:34]} Ra2 {[%emt 0:07:41]} 29. Rc7+ {[%emt 0:00:34]
} Kh6 {[%emt 0:10:05]} 30. Rxd6 {[%emt 0:05:09]} Rxa3 {[%emt 0:01:03]} 31. Rxf6
{[%emt 0:00:19]} Rxb4 {[%emt 0:11:16]} 32. Rff7 {[%emt 0:00:50]} Rb2 {[%emt 0:
00:00]} 33. Rxh7+ {[%emt 0:01:59]} Kg5 {[%emt 0:00:00]} 34. Rcf7 {[%emt 0:00:
00]} Ra4 {[%emt 0:09:22]} 35. Kg2 {[%emt 0:01:05]} Rc4 {[%emt 0:07:12]} 36. Kh3
{[%emt 0:00:32]} 1-0

[Event "44th Chess Olympiad Open 2022"]
[Site "Chennai"]
[Date "2022.08.05"]
[Round "7.75"]
[White "Alrehaili, Ahmed Abdullah S"]
[Black "Dabuae, David"]
[Result "1-0"]
[WhiteElo "1986"]
[BlackElo "1707"]
[Annotator "NA RC"]
[PlyCount "97"]
[EventDate "2022.??.??"]
[TimeControl "60"]

1. e4 {[%emt 0:00:04]} e5 {[%emt 0:00:04]} 2. Nf3 {[%emt 0:00:31]} Nc6 {
[%emt 0:00:08]} 3. Bc4 {[%emt 0:00:08]} Be7 {[%emt 0:00:14]} 4. d3 {[%emt 0:00:
00]} Nf6 {[%emt 0:00:09]} 5. O-O {[%emt 0:00:07]} O-O {[%emt 0:00:04]} 6. Re1 {
[%emt 0:00:08]} d6 {[%emt 0:00:12]} 7. c3 {[%emt 0:00:04]} h6 {[%emt 0:01:07]}
8. Nbd2 {[%emt 0:00:38]} Na5 {[%emt 0:00:40]} 9. Bb5 {[%emt 0:00:03]} c6 {
[%emt 0:00:35]} 10. Ba4 {[%emt 0:00:02]} b5 {[%emt 0:00:31]} 11. Bc2 {[%emt 0:
00:00]} Bg4 {[%emt 0:00:49]} 12. h3 {[%emt 0:01:18]} Bh5 {[%emt 0:00:05]} 13.
Nf1 {[%emt 0:02:52]} Qc7 {[%emt 0:00:31]} 14. Ng3 {[%emt 0:00:28]} Bg6 {
[%emt 0:00:05]} 15. Nh4 {[%emt 0:00:33]} Nh7 {[%emt 0:02:21]} 16. Nhf5 {
[%emt 0:08:33]} Bf6 {[%emt 0:00:22]} 17. h4 {[%emt 0:01:27]} Rad8 {[%emt 0:00:
00]} 18. Qg4 {[%emt 0:02:46]} Qd7 {[%emt 0:03:50]} 19. a4 {[%emt 0:03:18]} b4 {
[%emt 0:08:15]} 20. cxb4 {[%emt 0:00:41]} Nb7 {[%emt 0:00:07]} 21. Be3 {
[%emt 0:00:35]} c5 {[%emt 0:02:31]} 22. Bb3 {[%emt 0:06:16]} Kh8 {[%emt 0:00:
00]} 23. b5 {[%emt 0:03:00]} Rg8 {[%emt 0:09:14]} 24. h5 {[%emt 0:02:37]} Bxf5
{[%emt 0:00:29]} 25. Qxf5 {[%emt 0:00:11]} Qe7 {[%emt 0:00:50]} 26. a5 {
[%emt 0:03:21]} Rdf8 27. Bd5 {[%emt 0:00:00]} Nd8 {[%emt 0:02:10]} 28. b6 {
[%emt 0:01:58]} Ng5 {[%emt 0:07:40]} 29. bxa7 {[%emt 0:04:32]} Qxa7 {[%emt 0:
00:00]} 30. b4 {[%emt 0:00:08]} Nde6 {[%emt 0:01:04]} 31. b5 {[%emt 0:02:13]}
Nf4 {[%emt 0:00:17]} 32. b6 {[%emt 0:00:43]} Qe7 {[%emt 0:00:42]} 33. Bxf4 {
[%emt 0:00:48]} exf4 {[%emt 0:00:09]} 34. Qxf4 {[%emt 0:00:06]} Be5 {[%emt 0:
00:00]} 35. Qd2 {[%emt 0:01:41]} Qf6 {[%emt 0:00:27]} 36. Ra3 {[%emt 0:01:00]}
Ne6 {[%emt 0:01:06]} 37. a6 {[%emt 0:02:07]} Bd4 {[%emt 0:05:24]} 38. a7 {
[%emt 0:01:15]} c4 {[%emt 0:00:07]} 39. a8=Q {[%emt 0:01:40]} Rxa8 {[%emt 0:00:
00]} 40. Rxa8 {[%emt 0:00:51]} c3 {[%emt 0:01:41]} 41. Rxg8+ {[%emt 0:30:10]}
Kxg8 {[%emt 0:32:06]} 42. Qa2 {[%emt 0:00:00]} Bxb6 {[%emt 0:01:18]} 43. Bxe6 {
[%emt 0:00:10]} fxe6 {[%emt 0:00:30]} 44. e5 {[%emt 0:00:17]} dxe5 {[%emt 0:00:
00]} 45. Ne4 {[%emt 0:00:24]} Qf5 {[%emt 0:00:41]} 46. Nxc3 {[%emt 0:01:16]}
Bd4 {[%emt 0:01:19]} 47. Qa8+ {[%emt 0:00:13]} Kh7 {[%emt 0:00:19]} 48. Ne4 {
[%emt 0:00:12]} Qxh5 {[%emt 0:00:19]} 49. Qf8 {[%emt 0:00:53]} 1-0

[Event "44th Chess Olympiad Open 2022"]
[Site "Chennai"]
[Date "2022.08.05"]
[Round "7.75"]
[White "Alharthi, Ahmed Mohammed A"]
[Black "Dabuae, Thubalkain"]
[Result "1-0"]
[WhiteElo "1935"]
[BlackElo "1941"]
[Annotator "NA RC"]
[PlyCount "85"]
[EventDate "2022.??.??"]
[TimeControl "60"]

1. d4 {[%emt 0:00:05]} Nf6 {[%emt 0:00:20]} 2. Bf4 {[%emt 0:00:57]} e6 {
[%emt 0:00:30]} 3. e3 {[%emt 0:00:29]} b6 {[%emt 0:01:51]} 4. Nd2 {[%emt 0:00:
00]} Bb7 {[%emt 0:00:20]} 5. Ngf3 {[%emt 0:00:37]} g6 {[%emt 0:01:36]} 6. Bd3 {
[%emt 0:02:36]} Bg7 {[%emt 0:00:19]} 7. h4 {[%emt 0:05:39]} h6 {[%emt 0:00:47]}
8. c3 {[%emt 0:12:08]} d5 {[%emt 0:00:37]} 9. Qc2 {[%emt 0:05:36]} Nbd7 {
[%emt 0:01:21]} 10. g4 {[%emt 0:04:53]} c5 {[%emt 0:06:09]} 11. Bd6 {[%emt 0:
00:00]} Bf8 {[%emt 0:05:53]} 12. Bxf8 {[%emt 0:03:07]} Nxf8 {[%emt 0:00:33]}
13. Ne5 {[%emt 0:02:10]} c4 {[%emt 0:15:51]} 14. Be2 {[%emt 0:00:26]} N8d7 {
[%emt 0:02:51]} 15. O-O-O {[%emt 0:12:57]} Nxe5 {[%emt 0:00:10]} 16. dxe5 {
[%emt 0:00:11]} Nd7 {[%emt 0:00:28]} 17. f4 {[%emt 0:02:11]} Qc7 {[%emt 0:00:
00]} 18. Nf3 {[%emt 0:01:50]} O-O-O {[%emt 0:01:15]} 19. Nd4 {[%emt 0:02:35]}
a6 {[%emt 0:01:27]} 20. b4 {[%emt 0:05:34]} cxb3 {[%emt 0:00:46]} 21. axb3 {
[%emt 0:00:08]} Kb8 {[%emt 0:01:56]} 22. Kb2 {[%emt 0:00:54]} Rc8 {[%emt 0:00:
00]} 23. Ra1 {[%emt 0:03:34]} b5 {[%emt 0:00:51]} 24. Rhc1 {[%emt 0:02:33]} Qb6
{[%emt 0:00:39]} 25. b4 {[%emt 0:02:27]} g5 {[%emt 0:00:41]} 26. h5 {[%emt 0:
00:00]} f6 {[%emt 0:01:17]} 27. exf6 {[%emt 0:03:41]} e5 {[%emt 0:00:23]} 28.
fxe5 {[%emt 0:00:36]} Nxe5 {[%emt 0:00:34]} 29. Qf5 {[%emt 0:01:05]} Qc7 {
[%emt 0:01:01]} 30. Ne6 {[%emt 0:01:14]} Qd6 {[%emt 0:00:22]} 31. Nc5 {[%emt 0:
00:00]} Rhf8 {[%emt 0:01:54]} 32. Qxe5 {[%emt 0:00:45]} Qxe5 {[%emt 0:01:02]}
33. Nd7+ {[%emt 0:00:06]} Kc7 {[%emt 0:02:15]} 34. Nxe5 {[%emt 0:00:04]} Rxf6 {
[%emt 0:00:13]} 35. Rf1 {[%emt 0:00:26]} Rcf8 {[%emt 0:00:08]} 36. Nd3 {
[%emt 0:00:46]} Bc8 {[%emt 0:00:15]} 37. Rxf6 {[%emt 0:03:55]} Rxf6 {[%emt 0:
00:00]} 38. Kc2 {[%emt 0:00:24]} Kd6 {[%emt 0:00:27]} 39. Kd2 {[%emt 0:00:15]}
Re6 {[%emt 0:01:15]} 40. Rf1 {[%emt 0:00:55]} Ke7 {[%emt 0:00:48]} 41. Rf5 {
[%emt 0:31:35]} Kd6 {[%emt 0:30:19]} 42. Rf8 {[%emt 0:00:26]} Bd7 {[%emt 0:00:
00]} 43. Nc5 {[%emt 0:00:31]} 1-0

[Event "44th Chess Olympiad Open 2022"]
[Site "Chennai"]
[Date "2022.08.05"]
[Round "7.75"]
[White "Depaune, Ricko"]
[Black "Al Mutairi, Abdullah F"]
[Result "0-1"]
[WhiteElo "1726"]
[BlackElo "1916"]
[Annotator "NA RC"]
[PlyCount "56"]
[EventDate "2022.??.??"]
[TimeControl "60"]

1. d4 {[%emt 0:00:04]} d5 {[%emt 0:00:08]} 2. c4 {[%emt 0:00:15]} c6 {[%emt 0:
00:00]} 3. Bf4 {[%emt 0:00:07]} Nf6 {[%emt 0:00:19]} 4. Nc3 {[%emt 0:00:25]}
Qb6 {[%emt 0:01:29]} 5. Qc2 {[%emt 0:05:01]} Na6 {[%emt 0:15:20]} 6. c5 {
[%emt 0:01:44]} Qa5 {[%emt 0:01:06]} 7. Bd2 {[%emt 0:07:12]} Qc7 {[%emt 0:00:
00]} 8. Nf3 {[%emt 0:03:16]} g6 {[%emt 0:03:13]} 9. a3 {[%emt 0:00:56]} b6 {
[%emt 0:00:18]} 10. e3 {[%emt 0:00:28]} bxc5 {[%emt 0:00:22]} 11. Bxa6 {
[%emt 0:00:13]} Bxa6 {[%emt 0:00:13]} 12. dxc5 {[%emt 0:07:24]} e5 {[%emt 0:00:
00]} 13. b4 {[%emt 0:00:03]} Bg7 {[%emt 0:00:42]} 14. a4 {[%emt 0:01:58]} e4 {
[%emt 0:00:51]} 15. Nd4 {[%emt 0:01:07]} Bd3 {[%emt 0:00:18]} 16. Qb2 {[%emt 0:
00:00]} O-O {[%emt 0:00:22]} 17. Nce2 {[%emt 0:01:14]} Nd7 {[%emt 0:00:49]} 18.
Bc3 {[%emt 0:01:07]} Rab8 {[%emt 0:01:02]} 19. Qa3 {[%emt 0:02:15]} Ne5 {
[%emt 0:00:33]} 20. O-O {[%emt 0:00:41]} Ng4 {[%emt 0:00:31]} 21. Ng3 {[%emt 0:
00:00]} h5 {[%emt 0:03:21]} 22. h3 {[%emt 0:02:24]} Nxe3 {[%emt 0:03:40]} 23.
Rfe1 {[%emt 0:01:51]} Nc4 {[%emt 0:00:23]} 24. Qb3 {[%emt 0:01:22]} e3 {
[%emt 0:01:56]} 25. Nh1 {[%emt 0:02:14]} Be5 {[%emt 0:01:36]} 26. fxe3 {
[%emt 0:09:29]} Bh2+ {[%emt 0:03:03]} 27. Kf2 {[%emt 0:00:53]} h4 {[%emt 0:00:
00]} 28. Nf3 {[%emt 0:00:00]} Qg3+ {[%emt 0:01:27]} 0-1

[Event "44th Chess Olympiad Open 2022"]
[Site "Chennai"]
[Date "2022.08.05"]
[Round "7.76"]
[White "Mirzaad, S.wahabuddin"]
[Black "Klaas Tokelo"]
[Result "1-0"]
[WhiteElo "1999"]
[BlackElo "1812"]
[Annotator "NA RC"]
[PlyCount "71"]
[EventDate "2022.??.??"]
[TimeControl "60"]

1. d4 {[%emt 0:00:11]} Nf6 {[%emt 0:00:54]} 2. Bf4 {[%emt 0:00:11]} e6 {
[%emt 0:01:00]} 3. e3 {[%emt 0:00:43]} Be7 {[%emt 0:00:42]} 4. Nf3 {[%emt 0:00:
00]} b6 {[%emt 0:00:07]} 5. Nbd2 {[%emt 0:00:34]} Bb7 {[%emt 0:00:10]} 6. Bd3 {
[%emt 0:00:53]} d5 {[%emt 0:00:19]} 7. O-O {[%emt 0:00:18]} O-O {[%emt 0:00:04]
} 8. Ne5 {[%emt 0:00:38]} Nbd7 {[%emt 0:00:08]} 9. Qf3 {[%emt 0:01:13]} c5 {
[%emt 0:01:22]} 10. c3 {[%emt 0:00:10]} Rc8 {[%emt 0:03:36]} 11. Rad1 {[%emt 0:
00:00]} Re8 {[%emt 0:08:45]} 12. Qh3 {[%emt 0:02:30]} a6 {[%emt 0:01:17]} 13.
g4 {[%emt 0:03:18]} Nf8 {[%emt 0:00:33]} 14. Ndf3 {[%emt 0:06:41]} Ne4 {
[%emt 0:00:56]} 15. Bxe4 {[%emt 0:05:17]} dxe4 {[%emt 0:04:30]} 16. dxc5 {
[%emt 0:01:25]} exf3 {[%emt 0:07:46]} 17. Rxd8 {[%emt 0:00:41]} Rexd8 {[%emt 0:
00:00]} 18. c6 {[%emt 0:00:37]} Bxc6 {[%emt 0:01:42]} 19. Nxc6 {[%emt 0:00:09]}
Rxc6 {[%emt 0:00:33]} 20. Qxf3 {[%emt 0:00:10]} Rdc8 {[%emt 0:00:48]} 21. Rd1 {
[%emt 0:00:15]} b5 {[%emt 0:00:34]} 22. h3 {[%emt 0:02:05]} b4 {[%emt 0:01:26]}
23. cxb4 {[%emt 0:00:15]} Bxb4 {[%emt 0:00:08]} 24. Qe4 {[%emt 0:00:10]} Be7 {
[%emt 0:01:02]} 25. Be5 {[%emt 0:01:12]} Rc2 {[%emt 0:02:03]} 26. Bc3 {[%emt 0:
00:00]} R2xc3 {[%emt 0:02:47]} 27. bxc3 {[%emt 0:00:07]} Rxc3 {[%emt 0:00:08]}
28. Qb7 {[%emt 0:00:17]} Bh4 {[%emt 0:00:51]} 29. Qxa6 {[%emt 0:01:37]} Rc2 {
[%emt 0:00:10]} 30. Rf1 {[%emt 0:00:19]} h6 {[%emt 0:00:33]} 31. a4 {[%emt 0:
00:00]} Ng6 {[%emt 0:00:16]} 32. a5 {[%emt 0:01:42]} Ra2 {[%emt 0:00:33]} 33.
Qa8+ {[%emt 0:00:48]} Kh7 {[%emt 0:00:29]} 34. a6 {[%emt 0:00:13]} Be7 {
[%emt 0:00:21]} 35. Qb7 {[%emt 0:02:24]} Bc5 {[%emt 0:01:30]} 36. Rc1 {[%emt 0:
00:00]} 1-0

[Event "44th Chess Olympiad Open 2022"]
[Site "Chennai"]
[Date "2022.08.05"]
[Round "7.76"]
[White "Khalema, Sechaba"]
[Black "Sulaiman, Ahmad Ashrafi"]
[Result "1-0"]
[WhiteElo "1790"]
[BlackElo "1953"]
[Annotator "NA RC"]
[PlyCount "79"]
[EventDate "2022.??.??"]
[TimeControl "60"]

1. d4 {[%emt 0:00:03]} d5 {[%emt 0:00:11]} 2. c4 {[%emt 0:02:14]} c6 {[%emt 0:
00:00]} 3. cxd5 {[%emt 0:00:26]} cxd5 {[%emt 0:00:14]} 4. Bf4 {[%emt 0:00:06]}
Nc6 {[%emt 0:01:15]} 5. e3 {[%emt 0:00:09]} Nf6 {[%emt 0:01:17]} 6. Nc3 {
[%emt 0:00:11]} a6 {[%emt 0:00:16]} 7. Bd3 {[%emt 0:03:24]} b5 {[%emt 0:03:12]}
8. Rc1 {[%emt 0:00:00]} Bd7 {[%emt 0:01:41]} 9. Nge2 {[%emt 0:00:00]} e6 {
[%emt 0:00:29]} 10. O-O {[%emt 0:00:00]} Be7 {[%emt 0:00:17]} 11. h3 {[%emt 0:
00:00]} O-O {[%emt 0:00:26]} 12. Bb1 {[%emt 0:00:38]} Rc8 {[%emt 0:00:24]} 13.
Bh2 {[%emt 0:00:12]} g6 {[%emt 0:00:43]} 14. Nf4 {[%emt 0:00:09]} Bd6 {[%emt 0:
00:00]} 15. Nd3 {[%emt 0:00:04]} Bxh2+ {[%emt 0:00:32]} 16. Kxh2 {[%emt 0:00:
00]} Rc7 {[%emt 0:02:31]} 17. Kg1 {[%emt 0:10:05]} Bc8 {[%emt 0:00:55]} 18. f3
{[%emt 0:00:18]} Qd6 {[%emt 0:01:30]} 19. f4 {[%emt 0:00:13]} Ne4 {[%emt 0:00:
00]} 20. Nxe4 {[%emt 0:00:04]} dxe4 {[%emt 0:00:18]} 21. Nc5 {[%emt 0:00:08]}
f5 {[%emt 0:00:13]} 22. a3 {[%emt 0:00:33]} Ne7 {[%emt 0:01:11]} 23. Qd2 {
[%emt 0:01:40]} Nd5 {[%emt 0:00:23]} 24. Rc2 {[%emt 0:00:34]} g5 {[%emt 0:00:
00]} 25. Ba2 {[%emt 0:00:32]} gxf4 {[%emt 0:00:42]} 26. Bxd5 {[%emt 0:00:08]}
fxe3 {[%emt 0:01:29]} 27. Bxe6+ {[%emt 0:00:11]} Bxe6 {[%emt 0:00:47]} 28. Qxe3
{[%emt 0:00:05]} Bc8 {[%emt 0:02:14]} 29. Rfc1 {[%emt 0:00:52]} Qd5 {[%emt 0:
00:00]} 30. Ne6 {[%emt 0:25:12]} Bxe6 {[%emt 0:06:02]} 31. Rxc7 {[%emt 0:00:10]
} f4 {[%emt 0:00:19]} 32. Qc3 {[%emt 0:00:09]} Qg5 {[%emt 0:02:21]} 33. Qc6 {
[%emt 0:03:51]} Bf5 {[%emt 0:05:36]} 34. Qd5+ {[%emt 0:00:15]} Kh8 {[%emt 0:00:
00]} 35. Rc8 {[%emt 0:00:17]} Qf6 {[%emt 0:03:44]} 36. R1c6 {[%emt 0:00:13]}
Bxc8 {[%emt 0:02:31]} 37. Rxf6 {[%emt 0:00:12]} Rxf6 {[%emt 0:00:07]} 38. Qd8+
{[%emt 0:00:08]} Kg7 {[%emt 0:00:33]} 39. Qxc8 {[%emt 0:00:10]} e3 {[%emt 0:00:
00]} 40. Kf1 {[%emt 0:00:16]} 1-0

[Event "44th Chess Olympiad Open 2022"]
[Site "Chennai"]
[Date "2022.08.05"]
[Round "7.76"]
[White "Tsephe, Lebajoa"]
[Black "Amini, Habibullah"]
[Result "0-1"]
[WhiteElo "1712"]
[BlackElo "2035"]
[Annotator "NA RC"]
[PlyCount "76"]
[EventDate "2022.??.??"]
[TimeControl "60"]

1. Nf3 {[%emt 0:00:36]} Nf6 {[%emt 0:00:54]} 2. g3 {[%emt 0:00:14]} g6 {
[%emt 0:02:02]} 3. Bg2 {[%emt 0:00:06]} Bg7 {[%emt 0:00:06]} 4. O-O {[%emt 0:
00:00]} O-O {[%emt 0:00:07]} 5. d3 {[%emt 0:00:06]} c5 {[%emt 0:00:50]} 6. e4 {
[%emt 0:00:12]} Nc6 {[%emt 0:00:24]} 7. c3 {[%emt 0:00:25]} d6 {[%emt 0:01:29]}
8. Nbd2 {[%emt 0:00:37]} Nd7 {[%emt 0:04:29]} 9. h3 {[%emt 0:01:26]} Qc7 {
[%emt 0:01:10]} 10. a4 {[%emt 0:03:10]} b6 {[%emt 0:00:14]} 11. Qe2 {[%emt 0:
00:00]} Ba6 {[%emt 0:05:52]} 12. Nc4 {[%emt 0:00:20]} Nde5 {[%emt 0:02:34]} 13.
Nfxe5 {[%emt 0:00:34]} Nxe5 {[%emt 0:00:02]} 14. f4 {[%emt 0:08:58]} Nxc4 {
[%emt 0:03:54]} 15. dxc4 {[%emt 0:00:29]} Rad8 {[%emt 0:00:21]} 16. Be3 {
[%emt 0:00:05]} e6 {[%emt 0:00:14]} 17. Rfd1 {[%emt 0:01:30]} Rfe8 {[%emt 0:00:
00]} 18. Qd3 {[%emt 0:13:16]} d5 {[%emt 0:07:37]} 19. exd5 {[%emt 0:00:00]}
exd5 {[%emt 0:00:01]} 20. Bxd5 {[%emt 0:00:00]} Rxd5 {[%emt 0:00:38]} 21. Qxd5
{[%emt 0:00:00]} Rxe3 {[%emt 0:00:21]} 22. Kf2 {[%emt 0:00:00]} Re8 {[%emt 0:
00:00]} 23. Qd7 {[%emt 0:00:00]} Qxd7 {[%emt 0:03:20]} 24. Rxd7 {[%emt 0:00:00]
} Bxc4 {[%emt 0:00:06]} 25. Re1 {[%emt 0:00:00]} Ra8 {[%emt 0:09:19]} 26. Ree7
{[%emt 0:00:00]} a6 {[%emt 0:00:03]} 27. Ra7 {[%emt 0:00:00]} Rd8 {[%emt 0:00:
00]} 28. Rad7 {[%emt 0:00:04]} Rxd7 {[%emt 0:02:32]} 29. Rxd7 {[%emt 0:00:44]}
b5 {[%emt 0:00:22]} 30. axb5 {[%emt 0:02:38]} axb5 {[%emt 0:00:18]} 31. Rc7 {
[%emt 0:01:51]} Bf8 {[%emt 0:00:15]} 32. h4 {[%emt 0:00:55]} h5 {[%emt 0:00:07]
} 33. Ke3 {[%emt 0:00:17]} Be6 {[%emt 0:00:21]} 34. Kf2 {[%emt 0:04:12]} b4 {
[%emt 0:00:02]} 35. cxb4 {[%emt 0:00:50]} cxb4 {[%emt 0:00:02]} 36. Rc2 {
[%emt 0:00:39]} b3 {[%emt 0:00:32]} 37. Rd2 {[%emt 0:00:26]} Bg7 {[%emt 0:00:
00]} 38. Kf3 {[%emt 0:00:50]} Bf5 {[%emt 0:00:44]} 0-1